bitfinex-derivatives/quotes_SOLF0:USTF0_20241103
["timestamp","ask_amount","ask_price","bid_price","bid_amount"]
[1730616017498,3.0732,162.75,162.74,6.61885123]
[1730616018091,3.0732,162.75,162.67,2.82]
[1730616018092,3.0735,162.74,162.72,6.61885123]
[1730616018991,3.0736,162.73,162.72,6.61885123]
[1730616025801,2.82,162.76,162.72,6.61885123]
[1730616025998,3.0733,162.75,162.73,6.61885123]
[1730616026596,5.8931,162.76,162.73,9.69235123]
[1730616026789,2.82,162.76,162.73,6.61885123]
[1730616026997,2.82,162.78,162.75,6.61885123]
[1730616027413,3.0728,162.78,162.75,9.69205123]
[1730616028120,3.0729,162.77,162.75,9.69205123]
[1730616028495,4.1294,162.79,162.73,9.69245123]
[1730616028693,3.0733,162.75,162.73,6.61885123]
[1730616029502,3.0733,162.75,162.72,6.61885123]
[1730616029904,3.0733,162.75,162.72,9.69245123]
[1730616033904,3.0733,162.75,162.74,6.61885123]
[1730616034700,1.3021,162.78,162.74,6.61885123]
[1730616034701,3.0729,162.77,162.74,6.61885123]
[1730616035706,3.073,162.76,162.74,6.61885123]
[1730616035908,2.82,162.79,162.74,6.61885123]
[1730616036201,2.82,162.79,162.74,9.69215123]
[1730616036603,2.82,162.78,162.74,9.69215123]
[1730616036806,3.073,162.77,162.75,3.0732]
[1730616037404,3.073,162.77,162.74,9.69225123]
[1730616040308,3.073,162.77,162.7,1.2971]
[1730616040309,2.82,162.78,162.76,6.61885123]
[1730616040513,2.82,162.78,162.76,9.69175123]
[1730616044718,5.8925,162.79,162.76,9.69175123]
[1730616045234,2.82,162.79,162.77,6.61885123]
[1730616045418,2.82,162.79,162.77,9.69155123]
[1730616046719,2.82,162.79,162.77,6.61885123]
[1730616046910,3.0727,162.78,162.75,6.61885123]
[1730616047810,3.0727,162.78,162.75,3.0732]
[1730616048011,2.82,162.79,162.74,6.61885123]
[1730616048211,3.0732,162.76,162.72,6.61885123]
[1730616048518,3.0732,162.76,162.73,3.0735]
[1730616057115,3.0727,162.78,162.75,6.61885123]
[1730616057321,3.0727,162.78,162.76,6.61885123]
[1730616057528,2.8,162.78,162.76,6.61885123]
[1730616058122,2.8,162.78,162.76,9.69175123]
[1730616059626,5.8728,162.78,162.76,6.61885123]
[1730616059829,2.8,162.78,162.76,6.61885123]
[1730616061229,3.073,162.76,162.75,6.61885123]
[1730616062828,2.8,162.78,162.75,6.61885123]
[1730616063030,5.8728,162.78,162.75,9.69205123]
[1730616063532,2.8,162.78,162.75,9.69205123]
[1730616063739,3.0729,162.77,162.75,9.69205123]
[1730616066831,3.0729,162.77,162.75,3.0732]
[1730616069466,2.8,162.78,162.73,6.61885123]
[1730616069628,3.0731,162.76,162.74,3.0733]
[1730616073829,3.0734,162.75,162.72,9.69245123]
[1730616074629,10.78745123,162.78,162.72,6.61885123]
[1730616074832,3.0735,162.74,162.72,6.61885123]
[1730616076243,3.0735,162.74,162.72,9.69255123]
[1730616076435,3.0732,162.76,162.72,6.61885123]
[1730616076632,10.78745123,162.78,162.72,6.61885123]
[1730616076863,10.78745123,162.78,162.72,9.69255123]
[1730616078249,3.0734,162.75,162.72,9.69255123]
[1730616078448,10.78745123,162.78,162.72,9.69255123]
[1730616078831,3.0734,162.75,162.72,9.69255123]
[1730616079036,10.78745123,162.78,162.72,9.69255123]
[1730616080348,10.78745123,162.78,162.72,6.61885123]
[1730616080535,10.78745123,162.78,162.73,3.0736]
[1730616080849,10.78745123,162.78,162.72,6.61885123]
[1730616081248,3.0732,162.76,162.73,3.0736]
[1730616082334,3.0732,162.75,162.73,3.0736]
[1730616083546,4.1686,162.78,162.74,6.61885123]
[1730616083748,3.0729,162.77,162.75,6.61885123]
[1730616084144,5.8728,162.78,162.75,9.69195123]
[1730616087954,3.0728,162.77,162.75,9.69195123]
[1730616089249,2.8,162.78,162.77,3.0728]
[1730616089470,3.0725,162.8,162.77,3.0728]
[1730616089757,5.8725,162.8,162.77,3.0728]
[1730616090158,3.0725,162.79,162.77,3.0728]
[1730616091678,3.0725,162.79,162.76,6.61885123]
[1730616091961,3.0725,162.79,162.76,9.69185123]
[1730616092749,2.8,162.79,162.75,6.61885123]
[1730616092954,3.0727,162.78,162.75,9.69205123]
[1730616093668,2.8,162.81,162.77,6.61885123]
[1730616094256,5.8722,162.81,162.78,3.0726]
[1730616095177,2.8,162.81,162.78,3.0726]
[1730616095456,3.0723,162.8,162.78,3.0726]
[1730616097252,5.8722,162.81,162.79,6.61885123]
[1730616101750,2.8,162.81,162.79,6.61885123]
[1730616101959,2.8,162.81,162.79,9.69125123]
[1730616102758,5.8718,162.83,162.8,9.69115123]
[1730616104061,2.8,162.83,162.8,6.61885123]
[1730616104263,3.0719,162.82,162.8,6.61885123]
[1730616105068,3.0719,162.82,162.79,9.69125123]
[1730616105971,68.90845505,162.84,162.79,6.61885123]
[1730616106160,3.072,162.82,162.79,9.69125123]
[1730616112269,71.98005505,162.84,162.81,9.69085123]
[1730616113865,69.18005505,162.84,162.81,9.69085123]
[1730616114176,10.72355123,162.88,162.82,6.61885123]
[1730616114472,3.0714,162.85,162.82,9.69065123]
[1730616114764,2.8,162.87,162.82,6.61885123]
[1730616115161,3.0713,162.85,162.82,9.69065123]
[1730616115367,3.0713,162.85,162.84,6.61885123]
[1730616116561,6.61885123,162.89,162.84,6.61885123]
[1730616116562,2.8,162.89,162.84,6.61885123]
[1730616116762,2.8,162.89,162.86,6.61885123]
[1730616118385,2.8,162.89,162.86,9.68995123]
[1730616118386,5.8707,162.89,162.86,9.68995123]
[1730616119067,5.8707,162.89,162.86,6.61885123]
[1730616119868,3.0708,162.88,162.86,6.61885123]
[1730616120474,3.0708,162.88,162.85,9.69015123]
[1730616122574,3.0711,162.86,162.85,6.61885123]
[1730616122777,2.8,162.89,162.79,3.11315435]
[1730616122778,2.8,162.89,162.83,6.61885123]
[1730616122977,6.61885123,162.88,162.83,6.61885123]
[1730616123184,3.0715,162.85,162.83,6.61885123]
[1730616123373,6.61885123,162.88,162.83,6.61885123]
[1730616123780,3.0714,162.85,162.83,6.61885123]
[1730616124085,6.61885123,162.88,162.83,6.61885123]
[1730616125482,7.97475123,162.88,162.82,6.61885123]
[1730616125683,3.0712,162.86,162.82,6.61885123]
[1730616125888,3.0712,162.86,162.82,9.69075123]
[1730616126688,7.97475123,162.88,162.82,9.69075123]
[1730616127378,3.0713,162.86,162.82,9.69075123]
[1730616128485,7.97475123,162.88,162.82,9.69075123]
[1730616129285,7.97475123,162.88,162.82,6.61885123]
[1730616129516,6.61885123,162.87,162.81,6.61885123]
[1730616129797,4.0334,162.88,162.79,6.61885123]
[1730616129798,3.0722,162.81,162.79,6.61885123]
[1730616130291,2.8,162.83,162.79,6.61885123]
[1730616131392,3.072,162.82,162.79,9.69135123]
[1730616131781,2.8,162.83,162.79,6.61885123]
[1730616131981,3.0721,162.81,162.79,6.61885123]
[1730616132280,9.41885123,162.83,162.78,6.61885123]
[1730616132679,3.0724,162.8,162.78,6.61885123]
[1730616138399,9.41885123,162.83,162.78,6.61885123]
[1730616138595,3.0725,162.79,162.78,6.61885123]
[1730616141209,3.0723,162.8,162.78,6.61885123]
[1730616141395,2.8,162.83,162.79,6.61885123]
[1730616141697,2.8,162.82,162.79,6.61885123]
[1730616141885,3.0722,162.81,162.79,6.61885123]
[1730616143301,2.8,162.82,162.79,6.61885123]
[1730616143698,2.8,162.83,162.8,3.0722]
[1730616147337,2.8,162.83,162.8,3.0721]
[1730616147498,2.8,162.83,162.79,6.61885123]
[1730616148105,2.8,162.84,162.81,3.072]
[1730616148607,5.8716,162.84,162.79,6.61885123]
[1730616148816,2.8,162.84,162.79,6.61885123]
[1730616149113,3.0721,162.81,162.78,6.61885123]
[1730616149311,2.8,162.84,162.78,9.69135123]
[1730616149706,3.072,162.82,162.78,9.69135123]
[1730616149907,2.8,162.84,162.79,6.61885123]
[1730616150110,2.8,162.84,162.79,9.69125123]
[1730616150308,3.0718,162.83,162.79,9.69125123]
[1730616161134,3.0717,162.83,162.8,3.0721]
[1730616161438,3.0717,162.83,162.79,6.61885123]
[1730616162130,3.0717,162.83,162.79,9.69125123]
[1730616162536,2.8,162.84,162.8,6.61885123]
[1730616162845,72.72080501,162.86,162.83,3.0717]
[1730616162846,68.90195378,162.86,162.83,3.0717]
[1730616163935,2.8,162.86,162.83,3.0717]
[1730616164231,5.8712,162.86,162.83,3.0717]
[1730616169540,3.0712,162.86,162.83,3.0717]
[1730616176533,3.0715,162.84,162.82,6.61885123]
[1730616178247,3.0715,162.84,162.82,9.69075123]
[1730616181247,3.0715,162.84,162.82,6.61885123]
[1730616181750,3.072,162.82,162.8,6.61885123]
[1730616181955,6.61885123,162.84,162.79,6.61885123]
[1730616182141,2.8,162.83,162.79,6.61885123]
[1730616182650,3.0719,162.82,162.79,6.61885123]
[1730616185442,3.0719,162.82,162.74,4.092]
[1730616185652,3.0719,162.82,162.81,6.61885123]
[1730616189753,2.8,162.83,162.81,9.69095123]
[1730616190082,2.8,162.83,162.82,6.61885123]
[1730616190743,6.61885123,162.87,162.82,6.61885123]
[1730616190947,2.8,162.85,162.82,6.61885123]
[1730616191960,2.8,162.85,162.84,6.61885123]
[1730616192146,67.44764178,162.88,162.84,6.61885123]
[1730616192350,66.09174178,162.88,162.86,6.61885123]
[1730616192651,68.89174178,162.88,162.86,6.61885123]
[1730616193356,68.89174178,162.88,162.86,9.68995123]
[1730616194550,66.09174178,162.88,162.86,9.68995123]
[1730616195556,5.8707,162.89,162.86,9.68995123]
[1730616195757,2.8,162.9,162.88,3.0707]
[1730616196060,2.8,162.9,162.88,9.68955123]
[1730616196262,3.0701,162.92,162.89,3.0706]
[1730616196451,5.8701,162.92,162.89,3.0706]
[1730616199667,3.0705,162.9,162.88,6.61885123]
[1730616199867,9.41885123,162.92,162.86,6.61885123]
[1730616201156,9.41885123,162.92,162.86,9.68995123]
[1730616202174,3.0704,162.91,162.86,9.68995123]
[1730616202469,9.41885123,162.92,162.86,6.61885123]
[1730616202964,3.0707,162.89,162.86,6.61885123]
[1730616203356,3.0704,162.91,162.86,6.61885123]
[1730616203558,9.41885123,162.92,162.86,6.61885123]
[1730616204268,3.0708,162.88,162.86,6.61885123]
[1730616207069,3.0707,162.89,162.86,6.61885123]
[1730616207467,3.0707,162.89,162.86,9.68995123]
[1730616208671,3.0707,162.89,162.88,6.61885123]
[1730616212472,9.41885123,162.92,162.88,6.61885123]
[1730616214269,3.0706,162.89,162.88,6.61885123]
[1730616214766,3.0696,162.95,162.91,3.0701]
[1730616214972,3.0696,162.95,162.91,6.61885123]
[1730616215175,2.8,162.96,162.91,6.61885123]
[1730616215375,3.0697,162.94,162.91,9.68895123]
[1730616216070,2.8,162.96,162.91,9.68895123]
[1730616216071,3.0695,162.95,162.91,9.68895123]
[1730616218378,3.0695,162.95,162.91,6.61885123]
[1730616218578,3.0695,162.95,162.92,3.07]
[1730616219773,9.41885123,162.96,162.91,6.61885123]
[1730616219971,3.0699,162.93,162.9,6.61885123]
[1730616220373,3.0699,162.93,162.9,9.68925123]
[1730616220878,6.61885123,162.95,162.9,6.61885123]
[1730616221092,3.0702,162.92,162.88,9.68945123]
[1730616222582,3.0699,162.93,162.89,3.0704]
[1730616222775,3.0699,162.93,162.9,6.61885123]
[1730616224587,7.98055123,162.95,162.9,6.61885123]
[1730616224885,2.8,162.96,162.92,6.61885123]
[1730616225387,3.0697,162.94,162.92,9.68885123]
[1730616225573,6.61885123,162.98,162.92,9.68885123]
[1730616225824,2.8,162.96,162.93,6.61885123]
[1730616225976,3.0696,162.95,162.93,6.61885123]
[1730616226585,3.0694,162.96,162.93,9.68865123]
[1730616228384,3.0694,162.96,162.94,3.0696]
[1730616229286,3.0694,162.96,162.93,6.61885123]
[1730616229481,3.0694,162.96,162.93,9.68865123]
[1730616230292,2.8,162.97,162.96,3.0692]
[1730616230988,2.8,162.98,162.96,3.0692]
[1730616231491,5.8689,162.98,162.96,3.0692]
[1730616232119,5.8689,162.98,162.95,9.68825123]
[1730616232889,5.8689,162.98,162.96,6.61885123]
[1730616233092,5.8689,162.98,162.96,9.68805123]
[1730616233686,5.8689,162.98,162.96,6.61885123]
[1730616235299,5.8689,162.98,162.96,9.68805123]
[1730616235500,2.8,162.98,162.96,6.61885123]
[1730616236096,2.8,162.98,162.97,3.0691]
[1730616236607,2.8,162.98,162.96,9.68805123]
[1730616237907,103.24964951,163.02,162.97,6.61885123]
[1730616238107,3.0684,163.01,162.99,6.61885123]
[1730616238494,106.04964951,163.02,162.99,6.61885123]
[1730616238994,3.0684,163.01,162.99,6.61885123]
[1730616239704,3.0689,162.99,162.98,6.61885123]
[1730616245807,3.0687,162.99,162.98,6.61885123]
[1730616246700,5.8685,163.01,162.98,9.68765123]
[1730616247005,5.8685,163.01,162.99,6.61885123]
[1730616247513,3.0685,163.0,162.99,6.61885123]
[1730616247691,2.8,163.01,162.99,6.61885123]
[1730616248407,3.0684,163.01,162.99,6.61885123]
[1730616249203,2.8,163.02,162.99,6.61885123]
[1730616249403,2.8,163.02,162.99,9.68735123]
[1730616250114,5.8682,163.02,162.99,9.68735123]
[1730616251501,5.8682,163.02,163.01,6.61885123]
[1730616252411,2.8,163.02,163.01,6.61885123]
[1730616254310,5.8681,163.02,163.01,6.61885123]
[1730616258811,2.8,163.02,162.99,6.61885123]
[1730616259010,3.0685,163.0,162.99,6.61885123]
[1730616259207,9.41885123,163.02,162.96,6.61885123]
[1730616259721,2.8,163.02,162.96,9.68805123]
[1730616260213,3.0689,162.99,162.96,9.68805123]
[1730616260420,3.0689,162.99,162.98,6.61885123]
[1730616263112,2.8,163.02,162.98,6.61885123]
[1730616263425,3.0685,163.01,163.0,6.61885123]
[1730616263925,3.0687,162.99,162.98,6.61885123]
[1730616266909,3.0685,163.01,162.98,9.68775123]
[1730616268236,2.8,163.02,162.98,6.61885123]
[1730616268237,3.0687,162.99,162.98,6.61885123]
[1730616268616,2.8,163.02,162.97,6.61885123]
[1730616268817,3.0689,162.98,162.97,6.61885123]
[1730616275525,2.8,163.02,162.97,6.61885123]
[1730616275724,3.0686,163.0,162.99,6.61885123]
[1730616277133,3.0683,163.01,162.99,6.61885123]
[1730616277347,5.8683,163.01,162.99,6.61885123]
[1730616280633,3.0685,163.0,162.99,6.61885123]
[1730616280833,3.0685,163.0,162.98,6.61885123]
[1730616281126,3.0687,162.99,162.98,6.61885123]
[1730616284539,5.8684,163.01,162.99,3.0687]
[1730616284837,5.8684,163.01,163.0,6.61885123]
[1730616287130,5.8684,163.01,162.99,6.61885123]
[1730616287544,3.0685,163.0,162.99,6.61885123]
[1730616288836,3.0688,162.99,162.97,6.61885123]
[1730616289141,2.8,163.01,162.97,6.61885123]
[1730616289747,3.0686,163.0,162.97,9.68775123]
[1730616290828,3.0689,162.98,162.97,6.61885123]
[1730616293344,2.8,163.01,162.96,6.61885123]
[1730616293549,3.0692,162.97,162.96,6.61885123]
[1730616297943,3.0691,162.97,162.96,6.61885123]
[1730616300256,3.0693,162.96,162.95,6.61885123]
[1730616303653,3.0693,162.96,162.94,3.0696]
[1730616303858,3.0693,162.96,162.93,6.61885123]
[1730616303859,3.0693,162.96,162.93,9.68855123]
[1730616304557,3.0693,162.96,162.95,6.61885123]
[1730616305549,2.78,162.97,162.95,6.61885123]
[1730616305756,5.8491,162.97,162.96,6.61885123]
[1730616306462,2.78,162.99,162.96,9.68815123]
[1730616306657,2.78,162.99,162.98,6.61885123]
[1730616308359,5.8487,162.99,162.98,6.61885123]
[1730616308556,5.8487,162.99,162.96,9.68805123]
[1730616310555,3.0687,162.99,162.96,9.68805123]
[1730616310744,3.0686,163.0,162.98,6.61885123]
[1730616311457,2.78,163.01,162.99,9.68755123]
[1730616311651,2.78,163.01,162.99,6.61885123]
[1730616311970,5.8484,163.01,162.99,6.61885123]
[1730616313464,5.8484,163.01,162.98,9.68755123]
[1730616313855,2.78,163.01,162.96,6.61885123]
[1730616314062,3.069,162.98,162.96,6.61885123]
[1730616314565,2.78,163.01,162.96,6.61885123]
[1730616314758,2.78,163.01,162.91,1.3461]
[1730616314759,2.78,163.01,162.98,6.61885123]
[1730616315154,2.78,163.01,162.96,6.61885123]
[1730616316456,3.069,162.98,162.96,6.61885123]
[1730616318759,3.069,162.98,162.96,9.68805123]
[1730616320859,3.069,162.98,162.96,6.61885123]
[1730616322166,3.0688,162.99,162.96,9.68805123]
[1730616323562,3.0691,162.97,162.95,6.61885123]
[1730616324169,6.61885123,163.0,162.95,6.61885123]
[1730616324170,3.0693,162.96,162.95,6.61885123]
[1730616329768,5.8492,162.97,162.95,6.61885123]
[1730616329968,5.8492,162.97,162.96,6.61885123]
[1730616330996,4.048,163.0,162.96,9.68795123]
[1730616330997,2.78,162.98,162.96,9.68795123]
[1730616331472,5.8489,162.98,162.96,6.61885123]
[1730616334862,5.8489,162.98,162.97,6.61885123]
[1730616335478,2.78,162.98,162.97,9.68795123]
[1730616336777,3.0688,162.99,162.97,9.68795123]
[1730616336981,3.0688,162.99,162.97,6.61885123]
[1730616337384,3.069,162.98,162.96,6.61885123]
[1730616341788,3.0691,162.97,162.96,6.61885123]
[1730616341970,3.0691,162.97,162.94,9.68835123]
[1730616343488,3.0691,162.97,162.96,6.61885123]
[1730616350584,6.61885123,163.03,162.96,9.68815123]
[1730616350585,3.0688,162.99,162.96,9.68815123]
[1730616350793,2.78,163.02,162.98,6.61885123]
[1730616350987,6.61885123,163.04,162.98,6.61885123]
[1730616351183,2.78,163.03,162.98,6.61885123]
[1730616351381,3.0684,163.01,162.98,9.68765123]
[1730616351581,3.0684,163.01,162.98,3.0688]
[1730616351788,3.0684,163.01,163.0,6.61885123]
[1730616353095,3.0681,163.02,163.0,6.61885123]
[1730616354686,3.068,163.03,163.0,9.68725123]
[1730616354892,3.068,163.03,163.01,6.61885123]
[1730616355394,66.02011778,163.06,163.02,6.61885123]
[1730616355602,2.78,163.08,163.04,6.61885123]
[1730616357302,3.0672,163.07,163.04,9.68645123]
[1730616357487,2.78,163.08,163.06,6.61885123]
[1730616358293,3.0672,163.08,163.06,6.61885123]
[1730616358495,3.0672,163.08,163.04,9.68655123]
[1730616359592,3.0672,163.07,163.04,9.68655123]
[1730616359996,2.78,163.09,163.05,3.0675]
[1730616360497,3.0672,163.08,163.06,6.61885123]
[1730616360904,2.78,163.09,163.06,6.61885123]
[1730616361199,2.78,163.09,163.07,6.61885123]
[1730616361796,3.067,163.08,163.07,6.61885123]
[1730616365987,3.0668,163.09,163.07,6.61885123]
[1730616366793,3.0665,163.11,163.08,6.61885123]
[1730616366999,2.78,163.12,163.08,6.61885123]
[1730616367201,2.78,163.13,163.09,6.61885123]
[1730616367703,3.0664,163.12,163.09,6.61885123]
[1730616368299,3.0665,163.11,163.09,6.61885123]
[1730616368904,3.0664,163.12,163.09,9.68565123]
[1730616371110,3.0665,163.11,163.09,6.61885123]
[1730616371317,4.1206,163.15,163.09,6.61885123]
[1730616371505,1.3406,163.15,163.12,6.61885123]
[1730616371700,1.3406,163.15,163.14,6.61885123]
[1730616372103,4.4063,163.15,163.14,6.61885123]
[1730616372300,3.0657,163.15,163.14,6.61885123]
[1730616372718,3.0657,163.15,163.12,6.61885123]
[1730616373420,3.0657,163.15,163.12,9.68505123]
[1730616373606,3.0657,163.15,163.12,9.62611098]
[1730616373813,105.93851793,163.17,163.11,6.61885123]
[1730616374218,107.21061793,163.17,163.11,6.61885123]
[1730616374615,3.0662,163.13,163.11,6.61885123]
[1730616377018,3.0663,163.12,163.11,6.61885123]
[1730616378515,109.85191793,163.17,163.11,6.61885123]
[1730616378712,109.85191793,163.17,163.13,6.61885123]
[1730616378918,107.07191793,163.17,163.13,6.61885123]
[1730616379224,109.85191793,163.17,163.13,6.61885123]
[1730616380319,3.066,163.14,163.13,6.61885123]
[1730616381819,3.0658,163.15,163.13,6.61885123]
[1730616382117,3.0658,163.15,163.14,6.61885123]
[1730616383616,2.78,163.2,163.14,6.61885123]
[1730616383821,2.78,163.2,163.16,6.61885123]
[1730616384132,2.78,163.2,163.15,6.61885123]
[1730616384707,3.0655,163.16,163.15,6.61885123]
[1730616386015,2.78,163.2,163.15,6.61885123]
[1730616386221,3.0652,163.18,163.16,6.61885123]
[1730616387929,12.01475123,163.22,163.16,6.61885123]
[1730616389323,3.0652,163.18,163.16,6.61885123]
[1730616394840,3.0651,163.19,163.16,9.68435123]
[1730616395056,3.0651,163.19,163.18,6.61885123]
[1730616397131,2.6494,163.27,163.18,6.61885123]
[1730616397431,2.78,163.26,163.22,6.61885123]
[1730616397838,5.4294,163.27,163.22,6.61885123]
[1730616398342,3.0643,163.23,163.22,6.61885123]
[1730616399335,6.61885123,163.26,163.21,6.61885123]
[1730616399534,3.0644,163.22,163.21,6.61885123]
[1730616401731,3.0644,163.22,163.16,2.6962]
[1730616401732,3.0648,163.2,163.19,6.61885123]
[1730616402529,3.0653,163.17,163.16,6.61885123]
[1730616403543,3.0647,163.21,163.16,6.61885123]
[1730616403742,2.7266,163.22,163.18,6.61885123]
[1730616403944,1.3305,163.22,163.18,6.61885123]
[1730616404541,3.0646,163.21,163.18,9.68395123]
[1730616405553,3.0646,163.21,163.2,6.61885123]
[1730616405744,2.78,163.24,163.18,6.61885123]
[1730616405938,3.0649,163.19,163.18,6.61885123]
[1730616406349,2.78,163.24,163.18,6.61885123]
[1730616406583,3.0648,163.2,163.13,2.78]
[1730616406769,3.0648,163.2,163.19,6.61885123]
[1730616407355,3.0643,163.23,163.19,6.61885123]
[1730616407558,2.78,163.24,163.21,6.61885123]
[1730616408252,2.78,163.26,163.23,6.61885123]
[1730616409346,3.0641,163.24,163.23,6.61885123]
[1730616417118,6.61885123,163.27,163.23,6.61885123]
[1730616417266,2.78,163.28,163.24,6.61885123]
[1730616417759,3.0635,163.27,163.26,6.61885123]
[1730616421253,2.78,163.29,163.26,6.61885123]
[1730616421254,3.0632,163.29,163.26,9.68245123]
[1730616421455,3.0632,163.29,163.28,6.61885123]
[1730616422266,5.8429,163.3,163.28,6.61885123]
[1730616422485,5.8429,163.3,163.29,6.61885123]
[1730616422656,3.0629,163.3,163.29,6.61885123]
[1730616423263,3.0629,163.3,163.28,6.61885123]
[1730616423576,3.01626134,163.3,163.28,6.61885123]
[1730616424459,4.1438,163.32,163.28,6.61885123]
[1730616424662,3.0629,163.3,163.28,6.61885123]
[1730616425267,7.2064,163.32,163.29,3.0631]
[1730616425467,4.1438,163.32,163.28,6.61885123]
[1730616425874,1.3638,163.32,163.28,6.61885123]
[1730616426173,1.3638,163.32,163.29,6.61885123]
[1730616426669,3.0629,163.3,163.29,6.61885123]
[1730616428763,5.8424,163.33,163.29,6.61885123]
[1730616428967,3.0624,163.33,163.32,6.61885123]
[1730616429162,4.0243,163.39,163.32,6.61885123]
[1730616429163,2.78,163.36,163.32,6.61885123]
[1730616429368,2.78,163.36,163.33,6.61885123]
[1730616429872,3.0619,163.35,163.33,6.61885123]
[1730616430372,2.78,163.37,163.33,6.61885123]
[1730616431358,2.78,163.37,163.32,6.61885123]
[1730616431875,3.0625,163.33,163.32,6.61885123]
[1730616432261,2.78,163.37,163.32,6.61885123]
[1730616433176,3.0623,163.33,163.32,6.61885123]
[1730616435165,9.39885123,163.37,163.3,6.61885123]
[1730616435476,9.39885123,163.37,163.22,4.1093]
[1730616435477,6.61885123,163.33,163.29,6.61885123]
[1730616435677,2.78,163.32,163.29,6.61885123]
[1730616436071,2.78,163.32,163.3,6.61885123]
[1730616436582,5.8425,163.32,163.3,6.61885123]
[1730616437277,2.78,163.35,163.31,6.61885123]
[1730616437474,2.78,163.36,163.31,6.61885123]
[1730616437673,3.0624,163.33,163.31,6.61885123]
[1730616438979,2.78,163.36,163.31,6.61885123]
[1730616439279,3.0622,163.34,163.31,6.61885123]
[1730616439479,2.78,163.36,163.34,6.61885123]
[1730616440171,5.8419,163.36,163.34,6.61885123]
[1730616443080,2.78,163.36,163.35,6.61885123]
[1730616444279,5.8417,163.36,163.35,6.61885123]
[1730616445677,2.78,163.36,163.35,6.61885123]
[1730616446895,1.3652,163.44,163.35,6.61885123]
[1730616447182,1.3652,163.44,163.32,2.78]
[1730616447183,1.3652,163.44,163.42,9.67945123]
[1730616447373,1.3652,163.44,163.42,6.61885123]
[1730616447568,6.61885123,163.48,163.42,6.61885123]
[1730616447773,3.0602,163.45,163.42,6.61885123]
[1730616447992,2.78,163.47,163.42,6.61885123]
[1730616448315,2.78,163.47,163.44,6.61885123]
[1730616448316,3.06,163.46,163.44,6.61885123]
[1730616448481,2.78,163.47,163.44,6.61885123]
[1730616448880,3.0601,163.45,163.44,6.61885123]
[1730616449481,2.78,163.47,163.44,6.61885123]
[1730616449677,3.06,163.46,163.44,6.61885123]
[1730616451081,3.06,163.46,163.45,6.61885123]
[1730616452407,9.173,163.58,163.45,6.61885123]
[1730616452408,9.67765123,163.52,163.47,3.0595]
[1730616452713,9.67765123,163.52,163.43,2.78]
[1730616452714,6.61885123,163.57,163.51,6.61885123]
[1730616452944,6.61885123,163.59,163.53,6.61885123]
[1730616453227,1.02824443,163.58,163.54,6.61885123]
[1730616453603,2.78,163.57,163.54,6.61885123]
[1730616453697,2.78,163.57,163.56,6.61885123]
[1730616453911,6.8277,163.62,163.56,6.61885123]
[1730616454096,3.0571,163.61,163.59,6.61885123]
[1730616454315,4.1583,163.62,163.59,6.61885123]
[1730616454509,3.0572,163.61,163.59,6.61885123]
[1730616454701,2.78,163.62,163.59,6.61885123]
[1730616455286,9.39885123,163.62,163.55,6.61885123]
[1730616455601,3.0575,163.59,163.57,6.61885123]
[1730616456110,2.78,163.62,163.58,6.61885123]
[1730616456350,3.0574,163.6,163.58,6.61885123]
[1730616456707,5.8369,163.62,163.59,6.61885123]
[1730616457092,3.9876,163.65,163.59,6.61885123]
[1730616457093,4.057,163.65,163.59,6.61885123]
[1730616457406,3.0569,163.63,163.59,6.61885123]
[1730616457685,4.057,163.65,163.59,6.61885123]
[1730616457882,6.61885123,163.64,163.58,6.61885123]
[1730616458082,3.0574,163.59,163.58,6.61885123]
[1730616458282,6.61885123,163.63,163.57,6.61885123]
[1730616458691,3.0578,163.58,163.55,6.61885123]
[1730616459591,3.0572,163.61,163.57,6.61885123]
[1730616459788,3.0572,163.61,163.6,6.61885123]
[1730616460091,3.0573,163.6,163.59,6.61885123]
[1730616460485,2.78,163.64,163.57,6.61885123]
[1730616460486,6.61885123,163.63,163.57,6.61885123]
[1730616460685,3.0576,163.58,163.56,6.61885123]
[1730616460890,6.61885123,163.61,163.56,6.61885123]
[1730616461885,3.0578,163.58,163.56,6.61885123]